Cogmind - Beta 12 @@@ ROGUE MODE // 2024.01.02 @ 13:05:09 Player: badjay Result: Self-destructed Performance ------------- Evolutions (2) 1000 Regions Visited (5) 1000 Robots Destroyed (3) 15 Value Destroyed (48) 48 Prototype IDs (2) 40 Alien Tech Used (0) 0 Bonus (35) 35 TOTAL SCORE: 2138 Bonus ------- Follower Combat Kills 35 Cogmind --------- Core Integrity 254/550 Matter 300/300 Energy 100/100 System Corruption 0% Temperature Cool (0) Movement Core (50) Location -8/Materials Parts ------- > --- POWER (1) -------- (None) > --- PROPULSION (4) --- (None) > --- UTILITY (4) ------ (None) > --- WEAPON (2) ------- (None) > --- INVENTORY (5) ---- Light Ion Engine Aluminum Leg Mining Claw Axe Peak State ------------ > --- POWER ------------ (None) > --- PROPULSION ------- (None) > --- UTILITY ---------- Sensor Array Signal Interpreter > --- WEAPON ----------- EM Pulse Gun Mining Claw > --- INVENTORY -------- (None) [Rating: 4] Favorites ----------- Power Ion Engine Engine Ion Engine Propulsion None Utility Signal Interpreter Device Sensor Array Processor Signal Interpreter Weapon EM Pulse Gun Energy Gun EM Pulse Gun Slashing Weapon Mining Claw Build | -11 -10 -10 -9 -9 -8 ------- Run | Jun Mat Min Mat Min Mat Slots Evolved 4 | . . . 2 . 2 Power . | . . . . . . Propulsion 2 | . . . 1 . 1 Utility 2 | . . . 1 . 1 Weapon . | . . . . . . Parts Attached 7 | 2 3 . 1 . 1 Power 1 | 1 . . . . . Engine 1 | 1 . . . . . Core . | . . . . . . Reactor . | . . . . . . Propulsion . | . . . . . . Treads . | . . . . . . Leg . | . . . . . . Wheel . | . . . . . . Hover . | . . . . . . Flight . | . . . . . . Utility 3 | . 3 . . . . Device 1 | . 1 . . . . Storage . | . . . . . . Processor 2 | . 2 . . . . Hackware . | . . . . . . Protection . | . . . . . . Artifact . | . . . . . . Weapon 3 | 1 . . 1 . 1 Energy Gun 1 | 1 . . . . . Energy Cannon . | . . . . . . Ballistic Gun . | . . . . . . Ballistic Cannon . | . . . . . . Launcher . | . . . . . . Special Weapon . | . . . . . . Impact Weapon . | . . . . . . Slashing Weapon 2 | . . . 1 . 1 Piercing Weapon . | . . . . . . Special Melee Weapon . | . . . . . . Unidentified Prototypes . | . . . . . . Parts Lost 3 | . . . . . 3 Power . | . . . . . . Propulsion . | . . . . . . Utility 2 | . . . . . 2 Weapon 1 | . . . . . 1 Highest Loss Streak 3 | . . . . . 3 To Critical Strikes . | . . . . . . Average Slot Usage (%) 23 | . 30 42 30 22 15 Device 7 | . 2 14 11 11 6 Processor 10 | . 14 14 11 11 6 Energy Gun 4 | . 14 14 8 . . Naked Turns 2 | . . . . . 2 Heaviest Build 3 | 2 3 3 3 1 3 Greatest Support 3 | 3 3 3 3 3 3 Greatest Overweight (x) . | . . . . . . Average Overweight (x) . | . . . . . . Largest Inventory Capacity 5 | 5 5 5 5 5 5 Average Capacity 5 | 5 5 5 5 5 5 Most Carried 4 | . . . 2 2 4 Average Carried 1 | . . . 1 2 2 Final Capacity 5 | 5 5 5 5 5 5 Final Carried 4 | . . . 2 2 4 Class Distribution -------------------- 100% | Mutant Dominant Class ---------------- Mutant | -10/Materials Mutant | -10/Mines Mutant | -9/Materials Mutant | -9/Mines Mutant | -8/Materials Resources | -11 -10 -10 -9 -9 -8 ----------- Run | Jun Mat Min Mat Min Mat Matter Collected 236 | 152 30 . 23 . 31 Remotely . | . . . . . . Salvage Created 71 | . 48 . 23 . . Parts 9 | . 6 . 3 . . Haulers Intercepted . | . . . . . . Recyclers Shooed . | . . . . . . Parts Field Recycled . | . . . . . . Retrieved Matter . | . . . . . . Parts Self-Destructed . | . . . . . . Prevented . | . . . . . . Kills | -11 -10 -10 -9 -9 -8 ------- Run | Jun Mat Min Mat Min Mat Combat Hostiles Destroyed . | . . . . . . Classes Destroyed 1 | . 1 . . . . Watcher 3 | . 2 . 1 . . Best Kill Streak 2 | . 2 . 1 . . Combat Bots Only . | . . . . . . Max Kills in Single Turn 1 | . 1 . 1 . . Gunslinging . | . . . . . . Exploded . | . . . . . . Melee . | . . . . . . Uniques/NPCs Destroyed . | . . . . . . Combat | -11 -10 -10 -9 -9 -8 -------- Run | Jun Mat Min Mat Min Mat Damage Taken 465 | . . 10 86 . 369 Core 385 | . . 10 79 . 296 Absorbed by Shields . | . . . . . . Core Remaining (%) 92 | 100 . 96 . 80 . Volleys Fired 9 | . 5 . 4 . . Largest 1 | . 1 . 1 . . Hottest 40 | . 40 . 40 . . Shots Fired 9 | . 5 . 4 . . Gun 9 | . 5 . 4 . . Cannon . | . . . . . . Launcher . | . . . . . . Special . | . . . . . . Kinetic . | . . . . . . Thermal . | . . . . . . Explosive . | . . . . . . Electromagnetic 9 | . 5 . 4 . . Robot Hit Streak 5 | . 3 . 5 . . Robot Miss Streak 2 | . 2 . 1 . . Penetration Max . | . . . . . . Secondary Targets . | . . . . . . Shots Hit Robots 8 | . 3 . 3 . 2 Core Hits 4 | . 2 . 1 . 1 Critical Kills . | . . . . . . Critical Parts Destroyed . | . . . . . . Critical Strikes . | . . . . . . Melee Attacks 4 | . . . . . 4 Impact . | . . . . . . Slashing 4 | . . . . . 4 Piercing . | . . . . . . Sneak Attacks . | . . . . . . Combat Hostiles . | . . . . . . Follow-up Attacks . | . . . . . . Damage Inflicted 225 | . 114 . 83 . 28 Guns 128 | . 66 . 62 . . Cannons . | . . . . . . Explosions 48 | . 48 . . . . Melee 28 | . . . . . 28 Ramming 21 | . . . 21 . . Kinetic . | . . . . . . Thermal 48 | . 48 . . . . Explosive . | . . . . . . Electromagnetic 128 | . 66 . 62 . . Impact . | . . . . . . Slashing 28 | . . . . . 28 Piercing . | . . . . . . Highest Corruption 1 | . 1 1 . . . Average Corruption 1 | . 1 1 . . . Corruption Purged . | . . . . . . Corruption Blocked . | . . . . . . Overload Shots . | . . . . . . Overflow Damage . | . . . . . . Projectiles . | . . . . . . Explosions . | . . . . . . Melee . | . . . . . . Knockbacks . | . . . . . . Impact . | . . . . . . Kinetic . | . . . . . . Secondary . | . . . . . . Self-Inflicted Damage 9 | . . . 9 . . Shots . | . . . . . . Rammed 7 | . . . 7 . . Targets Rammed 7 | . . . 7 . . Kicked . | . . . . . . Crushed . | . . . . . . Highest Temperature 12 | . . . 12 . . Average Temperature 8 | . . . 8 . . Received Heat Transfer 195 | . . 6 9 . 180 Siege Activations . | . . . . . . Robots Corrupted . | . . . . . . Combat Hostiles . | . . . . . . Parts Fried . | . . . . . . Impact Corruptions . | . . . . . . Robots Melted . | . . . . . . Combat Hostiles . | . . . . . . Parts Melted . | . . . . . . Heat Transferred 50 | . 50 . . . . Parts Sabotaged . | . . . . . . Parts Stolen . | . . . . . . Parts Stripped . | . . . . . . Power Chain Reactions 1 | . 1 . . . . Missiles Intercepted . | . . . . . . Alert | -11 -10 -10 -9 -9 -8 ------- Run | Jun Mat Min Mat Min Mat Peak Influence 140 | . 57 22 140 54 77 Initial 54 | . . 22 8 54 20 Average 49 | . 34 22 76 54 50 Maximum Alert Level . | . . . . . . Low Security (%) 100 | 100 100 100 100 100 100 Level 1 . | . . . . . . Level 2 . | . . . . . . Level 3 . | . . . . . . Level 4 . | . . . . . . Level 5 . | . . . . . . High Security . | . . . . . . Max Security . | . . . . . . Squads Dispatched 4 | . 1 . . . 3 Investigation 1 | . . . . . 1 Extermination . | . . . . . . Reinforcement 3 | . 1 . . . 2 Assault . | . . . . . . Garrison . | . . . . . . Intercept . | . . . . . . Searches Triggered . | . . . . . . Construction Impeded . | . . . . . . Haulers Reinforced . | . . . . . . Active Scanning Responses . | . . . . . . Cargo Convoy Interrupts . | . . . . . . Stealth | -11 -10 -10 -9 -9 -8 --------- Run | Jun Mat Min Mat Min Mat Distress Signals 1 | . . . . . 1 Communications Jammed . | . . . . . . Distress Signals . | . . . . . . Times Spotted 22 | . 3 2 7 . 10 Peak Tracking Total 8 | . 2 2 5 . 8 Tactical Retreats 1 | . . . 1 . . Traps | -11 -10 -10 -9 -9 -8 ------- Run | Jun Mat Min Mat Min Mat Traps Triggered . | . . . . . . Indirectly . | . . . . . . Trap Hack Attempts . | . . . . . . Triggered . | . . . . . . Disarmed . | . . . . . . Reprogrammed . | . . . . . . Reused . | . . . . . . Traps Extracted . | . . . . . . Installed . | . . . . . . Triggered . | . . . . . . Machines | -11 -10 -10 -9 -9 -8 ---------- Run | Jun Mat Min Mat Min Mat Machines Disabled . | . . . . . . Max in Single Turn . | . . . . . . Machines Repaired . | . . . . . . Machines Sabotaged . | . . . . . . Overloaded Fab Kills . | . . . . . . Hacking | -11 -10 -10 -9 -9 -8 --------- Run | Jun Mat Min Mat Min Mat Machines Accessed 9 | . 4 . 1 . 4 Terminals 9 | . 4 . 1 . 4 Fabricators . | . . . . . . Repair Stations . | . . . . . . Recycling Units . | . . . . . . Scanalyzers . | . . . . . . Garrison Access . | . . . . . . Total Hacks 27 | . 14 . 2 . 11 Successful 16 | . 8 . 1 . 7 Failed 11 | . 6 . 1 . 4 Catastrophic 1 | . 1 . . . . Database Lockouts . | . . . . . . Manual 23 | . 11 . 1 . 11 Terminals 27 | . 14 . 2 . 11 Fabricators . | . . . . . . Repair Stations . | . . . . . . Recycling Units . | . . . . . . Scanalyzers . | . . . . . . Garrison Access . | . . . . . . Terminal Hacks 2 | . 2 . . . . Prototype ID Bank 1 | . 1 . . . . Alert Level 1 | . 1 . . . . Fabricator Hacks . | . . . . . . Repair Station Hacks . | . . . . . . Recycling Unit Hacks . | . . . . . . Scanalyzer . | . . . . . . Garrison Access Hacks . | . . . . . . Unauthorized Hacks 14 | . 6 . 1 . 7 Terminals 14 | . 6 . 1 . 7 Track 6 | . 3 . . . 3 Botnet 7 | . 3 . 1 . 3 Operators 1 | . . . . . 1 Fabricators . | . . . . . . Repair Stations . | . . . . . . Recycling Units . | . . . . . . Scanalyzers . | . . . . . . Garrison Access . | . . . . . . Data Cores Recovered . | . . . . . . Used . | . . . . . . Hacking Detections 9 | . 4 . 1 . 4 Full Trace Events 1 | . 1 . . . . Feedback Events 1 | . 1 . . . . Corruption 1 | . 1 . . . . Feedback Blocked . | . . . . . . Robot Schematics Acquired . | . . . . . . Robots Built . | . . . . . . Authchips . | . . . . . . Time . | . . . . . . Total Robot Build Rating . | . . . . . . Part Schematics Acquired . | . . . . . . Parts Built . | . . . . . . Authchips . | . . . . . . Time . | . . . . . . Total Part Build Rating . | . . . . . . Parts Repaired . | . . . . . . Time . | . . . . . . Parts Recycled . | . . . . . . Recycled Matter . | . . . . . . Retrieved Matter . | . . . . . . Retrieved Components . | . . . . . . Parts Scanalyzed . | . . . . . . Part Schematics Acquired . | . . . . . . Parts Damaged . | . . . . . . Bothacking | -11 -10 -10 -9 -9 -8 ------------ Run | Jun Mat Min Mat Min Mat Used RIF Installer . | . . . . . . Robots Hacked . | . . . . . . Non-combat . | . . . . . . Combat . | . . . . . . Robot Hacks Applied . | . . . . . . Relay Couplers Released . | . . . . . . Fabnet Peak Effective % . | . . . . . . Robots Rewired . | . . . . . . Allies Hacked . | . . . . . . Hacks Repelled . | . . . . . . Allies | -11 -10 -10 -9 -9 -8 -------- Run | Jun Mat Min Mat Min Mat Total Allies 2 | . . . . 2 . Largest Group 2 | . . . . 2 2 Highest-Rated Group 45 | . . . . 45 45 Highest-Rated Ally 31 | . . . . 31 31 Total Orders . | . . . . . . Ally Attacks 12 | . . . . . 12 Total Damage 124 | . . . . . 124 Kills 2 | . . . . . 2 Allies Corrupted . | . . . . . . Allies Melted . | . . . . . . Intel | -11 -10 -10 -9 -9 -8 ------- Run | Jun Mat Min Mat Min Mat Robot Analysis Total . | . . . . . . Derelict Logs Recovered 1 | . . . . 1 . Drone Launches . | . . . . . . Drone Recoveries . | . . . . . . Exploration | -11 -10 -10 -9 -9 -8 ------------- Run | Jun Mat Min Mat Min Mat Turns Passed 419 | 22 75 9 74 117 122 Spaces Moved 666 | 37 119 18 112 174 206 Core 666 | 37 119 18 112 174 206 Treads . | . . . . . . Legs . | . . . . . . Wheels . | . . . . . . Hover . | . . . . . . Flight . | . . . . . . Fastest Speed 50 | 50 50 50 50 50 50 Average Speed 50 | 50 50 50 50 50 50 Slowest Speed 50 | 50 50 50 50 50 50 Overloaded Moves . | . . . . . . Propulsion Burnouts . | . . . . . . Robots Hopped . | . . . . . . Cave-ins Triggered . | . . . . . . Exploration Rate (%) 19 | 2 28 8 15 43 23 Regions Visited 5 Branch Regions 2 Pre-discovered Areas 1 | . . . . 1 . Known Exits Taken 4 | . 1 1 1 1 . Unknown Exits Taken 1 | 1 . . . . . Scrap Searched . | . . . . . . Spaces Dug . | . . . . . . Terrain Destroyed 2 | . 2 . . . . Melee . | . . . . . . Projectile . | . . . . . . AOE 2 | . 2 . . . . Terrain Rammed . | . . . . . . Walls Destroyed . | . . . . . . Machines Disabled . | . . . . . . Actions | -11 -10 -10 -9 -9 -8 --------- Run | Jun Mat Min Mat Min Mat Total 727 | 39 127 17 125 203 216 Wait 33 | . . . . 30 3 Move 661 | 36 118 17 111 173 206 Hop . | . . . . . . Pick Up 3 | . . . 1 . 2 Fast Attach 6 | 2 3 . 1 . . Attach 1 | . . . . . 1 Detach 1 | . . . 1 . . Swap . | . . . . . . Drop 2 | 1 1 . . . . Fire 9 | . 5 . 4 . . Melee 4 | . . . . . 4 Ram 7 | . . . 7 . . Kick . | . . . . . . Crush . | . . . . . . Escape Stasis . | . . . . . . Rewire . | . . . . . . Trap . | . . . . . . Miscellaneous . | . . . . . . Route ------- -11/Junkyard -10/Materials -10/Mines -9/Materials -9/Mines -8/Materials History --------- Turn | Location | Event 15 | -11/Junkyard | Discovered new exit (range 15) 23 | -11/Junkyard | Entered Materials 88 | -10/Materials | Discovered new exit (range 8) 97 | -10/Materials | Identified exit to Mines 98 | -10/Materials | Entered Mines 103 | -10/Mines | Discovered new exit (range 9) 107 | -10/Mines | Identified exit to Materials 107 | -10/Mines | Entered Materials 107 | -9/Materials | Evolved 2 slots: Propulsion x1, Utility x1 178 | -9/Materials | Discovered new exit (range 7) 181 | -9/Materials | Identified exit to Mines 181 | -9/Materials | Entered Mines 265 | -9/Mines | Discovered new exit (range 12) 288 | -9/Mines | Identified exit to Materials 298 | -9/Mines | Entered Materials 298 | -8/Materials | Accompanied by 2 allies 298 | -8/Materials | Evolved 2 slots: Propulsion x1, Utility x1 303 | -8/Materials | Led the pair of lost Derelicts to an unsafe place 318 | -8/Materials | Build established: Mutant 419 | -8/Materials | Core integrity fell below 50% 420 | -8/Materials | Self-destructed Last Messages --------------- Testing... Tracking enabled and active. 00353_ U-05 Engineer lays Concrete. 00361_ K-01 Serf collects debris. 00374_ Acquired Axe. 00376_ K-01 Serf collects debris. 00379_ K-01 Serf cleans the Terminal. 00386_ Matter Filter disabled. 00388_ Sensor Array destroyed. 00390_ Signal Interpreter destroyed. 00401_ G-47 Trooper Aluminum Leg ripped off. 00408_ G-47 Trooper destroyed. 00408_ 6O-4WO(g) destroyed. 00413_ U-05 Engineer builds a Door. 00415_ Slug penetrates Wall. 00417_ U-05 Engineer suffers critical hit (Burn). 00418_ Mining Claw destroyed. 00419_ ALERT: Hostiles spotted, dispatching reinforcements to Terminal M006. 00419_ R-06 Scavenger collects Lgt. Nuclear Core. Map ----- +----------------------------------------------------+ | ####?????????????????????????????????????????????? | | #?????????????????????????????????????????????? | | " ]#?????????????????????????????????????????????? | | " #?????????????????????????????????????????????? | | " #?????????????????????????????????????????????? | | " #?????????????????????????????????????????????? | | " !#?????????????????????????????????????????????? | | " #?????????????????????????????????????????????? | | " #?????????????????????????????????????????????? | | #?????????????????????????????????????????????? | | ####?????????????????????????????????????????????? | | !#???????????????????????????????????????????????? | | !#???????????????????????????????????????????????? | | !#???????????????????? ????? #???????????????????? | | #??????????????????? ????? #???????????????????? | | # ???????#?????????? """ #???????????????????? | | #= """"" #?????????#"" """ ????????????????????? | | # """"" #??????????"" ????????????????????? | | # """"" #???????????T """ ?????????????????????? | | # """"" #???????????" """ ?????????????????????? | | /# """"" #???????????? """??????????????????????? | | ##?? ??????????????? ??????????????????????? | | "#####/##################/######+#######?????????? | | %*rgu u w r ???????? | | gg r ???????? | | "%% T! r g @ kk h ???????? | | "" =% ###/########### ######+######+?????????? | | "" = = # ????????# a#??????????????????????? | | "" % # #??????# a#??????????????????????? | | "" # #??????# #???????????????o??????? | | # """ #??????# #??????????????????????? | | # """ ]#??????# #??????????????????????? | | # """ #??????#g #??????????????????????? | | ####+###########??????# #??????????????????????? | | ## !#?????????????# #??????????????????????? | | ## #?????????????# #??????????????????????? | | ## #?????????????# #??????????????????????? | | ## " " #?????????????# ??????????????????????? | | ## "R" #?????????????# ??????????????????????? | | ## """ #?????????????# ???????????????????????? | | ?########??????????????###???????????????????????? | | #????????????????????????????????????????????????? | | ?????????????????????????????????????????????????? | | ?????????????????????????????????????????????????? | | ?????????????????????????????????????????????????? | | ?????????????????????????????????????????????????? | | ?????????????????????????????????????????????????? | | ?????????????????????????????????????????????????? | | ?????????????????????????????????????????????????? | | ?????????????????????????????????????????????????? | +----------------------------------------------------+ Best States ------------- Heat Dissipation 31 Energy Generation 5 Energy Capacity 100 Matter Stores 300 Matter Capacity 300 Sight Range 16 Robot Scan Range 14 Terrain Scan Density 10 Evasion (%) 50 Item Schematics ----------------- None Robot Schematics ------------------ None Fabricated ------------ Nothing Alien Tech Used ----------------- None Achievements -------------- None Challenges ------------ None Game ------ Seed GrenadeSupersonicBoregun Manual? 0 Play Time 00:10:15 Cumulative 148.0 hours Start 2024.01.02 @ 12:56:43 End 2024.01.02 @ 13:05:09 Sessions 1 Manual Loads 0 Difficulty Rogue Special Mode None Game No. 147 Rogue 147 Adventurer 0 Explorer 0 Win Type - Total 13 Types 11/0/0/1/0/0/1/0/0 Lore% 66 Gallery% 65 Achievement% 67 Wizard Run 0 Options --------- ASCII 0 Keyboard 0 Movement Numpad Keybinds 0 Fullscreen 1 Font 18/SmallcapsGlow Map View 76x50 Tactical HUD 1 Map Filters NONE Filters NONE Steam 1 RUN: 054c2b6f-5774-4459-a87c-6479bf90f0a0